bitfinex/quotes_SOLUSD_20250410
["timestamp","ask_amount","ask_price","bid_price","bid_amount"]
[1744299582057,31.9109,109.68,109.6,51.92204287]
[1744299582281,9.1174,109.68,109.63,51.89204287]
[1744299582588,51.89204287,109.68,109.6,51.92204287]
[1744299582760,51.89204287,109.68,109.61,26.0]
[1744299582961,61.00954287,109.68,109.62,9.1224]
[1744299583165,51.89204287,109.67,109.63,51.89204287]
[1744299583365,9.1166,109.69,109.64,51.89204287]
[1744299583569,51.89204287,109.68,109.64,51.89204287]
[1744299583767,9.1166,109.69,109.64,51.89204287]
[1744299583966,51.89204287,109.68,109.63,51.89204287]
[1744299584469,9.1166,109.69,109.64,51.89204287]
[1744299584675,51.89204287,109.68,109.63,51.89204287]
[1744299585079,51.89204287,109.68,109.64,51.89204287]
[1744299585286,51.89204287,109.68,109.6,165.05464287]
[1744299585793,51.89204287,109.66,109.62,51.89204287]
[1744299585967,51.89204287,109.65,109.6,9.154]
[1744299586158,51.89204287,109.66,109.61,51.89204287]
[1744299586364,51.89204287,109.66,109.62,51.89204287]
[1744299586593,61.01144287,109.66,109.6,9.154]
[1744299586797,51.89204287,109.66,109.61,51.89204287]
[1744299587171,9.1185,109.67,109.6,9.154]
[1744299587380,51.89204287,109.64,109.6,0.03]
[1744299587685,31.9141,109.67,109.6,0.03]
[1744299587861,51.89204287,109.64,109.6,61.04604287]
[1744299588067,18.64964886,109.72,109.63,51.89204287]
[1744299588390,18.64964886,109.69,109.6,9.154]
[1744299588690,51.89204287,109.64,109.6,0.03]
[1744299588989,51.89204287,109.65,109.6,0.03]
[1744299589287,51.89204287,109.64,109.6,51.92204287]
[1744299589780,51.89204287,109.64,109.6,0.03]
[1744299590161,51.89204287,109.65,109.6,51.92204287]
[1744299590379,51.89204287,109.65,109.61,51.89204287]
[1744299590581,51.89204287,109.66,109.62,61.01444287]
[1744299590966,51.89204287,109.68,109.63,51.89204287]
[1744299592089,61.00814287,109.7,109.61,9.1228]
[1744299592287,51.89204287,109.68,109.61,9.1228]
[1744299592462,9.1174,109.68,109.61,9.1228]
[1744299592662,51.89204287,109.65,109.61,9.1228]
[1744299593188,27.76284886,109.73,109.64,51.89204287]
[1744299593485,9.1132,109.73,109.65,51.89204287]
[1744299593689,51.89204287,109.69,109.61,31.9309]
[1744299593878,51.89204287,109.69,109.65,51.89204287]
[1744299594077,51.89204287,109.7,109.61,31.9309]
[1744299594579,51.89204287,109.68,109.63,51.89204287]
[1744299594782,51.89204287,109.68,109.61,31.9309]
[1744299594964,9.1166,109.69,109.63,51.89204287]
[1744299595165,9.1149,109.71,109.61,77.5471]
[1744299595479,51.89204287,109.7,109.65,51.89204287]
[1744299595675,51.89204287,109.71,109.65,6.4225]
[1744299595876,31.8997,109.72,109.65,6.4225]
[1744299596179,51.89204287,109.69,109.65,6.4225]
[1744299596380,51.89204287,109.66,109.61,6.1165]
[1744299596581,9.119,109.66,109.6,9.154]
[1744299596990,51.89204287,109.64,109.6,9.154]
[1744299597194,51.89204287,109.65,109.6,61.04604287]
[1744299597575,51.89204287,109.65,109.6,9.154]
[1744299597771,9.119,109.66,109.61,51.89204287]
[1744299597983,51.89204287,109.67,109.6,51.92204287]
[1744299598181,9.1166,109.69,109.6,0.31432314]
[1744299598387,9.1166,109.69,109.64,51.89204287]
[1744299598698,51.89204287,109.68,109.64,51.89204287]
[1744299599088,51.89204287,109.68,109.6,52.20636601]
[1744299599284,51.89204287,109.68,109.64,9.1207]
[1744299599480,9.1166,109.69,109.64,61.01274287]
[1744299599700,61.00864287,109.69,109.61,22.8074]
[1744299599907,51.89204287,109.68,109.64,51.89204287]
[1744299600108,22.7862,109.72,109.66,51.89204287]
[1744299600315,103.63614287,109.75,109.67,51.89204287]
[1744299600607,0.063,109.79,109.74,51.89204287]
[1744299600783,0.063,109.79,109.7,51.89204287]
[1744299600975,51.95504287,109.79,109.71,26.0]
[1744299601183,9.1713,109.79,109.75,51.89204287]
[1744299601386,0.063,109.79,109.71,9.1149]
[1744299601578,51.89204287,109.77,109.71,9.1149]
[1744299602001,51.89204287,109.77,109.72,51.89204287]
[1744299602297,51.89204287,109.78,109.74,51.89204287]
[1744299602482,51.89204287,109.77,109.73,51.89204287]
[1744299602677,0.063,109.79,109.75,51.89204287]
[1744299603079,0.063,109.79,109.76,51.89204287]
[1744299603302,0.063,109.79,109.77,9.1099]
[1744299603599,0.063,109.79,109.77,61.00194287]
[1744299603800,0.063,109.79,109.77,9.1099]
[1744299604005,0.063,109.79,109.78,51.89204287]
[1744299604387,0.063,109.79,109.77,9.1099]
[1744299604601,0.063,109.79,109.78,51.89204287]
[1744299604982,0.063,109.79,109.77,61.00194287]
[1744299605182,0.063,109.79,109.75,61.00364287]
[1744299605386,0.063,109.79,109.76,51.89204287]
[1744299605793,51.89204287,109.78,109.74,15.1708]
[1744299606081,51.95504287,109.79,109.74,67.06284287]
[1744299606286,0.063,109.79,109.76,51.89204287]
[1744299606498,51.95504287,109.79,109.74,15.1708]
[1744299606701,51.89204287,109.77,109.73,61.00484287]
[1744299606905,51.89204287,109.77,109.73,9.1128]
[1744299607383,51.89204287,109.74,109.7,9.1154]
[1744299607599,18.64964886,109.76,109.68,51.89204287]
[1744299607811,9.1099,109.77,109.68,51.89204287]
[1744299607812,9.1099,109.77,109.7,51.89204287]
[1744299607981,51.89204287,109.75,109.7,51.89204287]
[1744299608182,51.89204287,109.75,109.68,103.993]
[1744299608382,9.1099,109.77,109.68,103.993]
[1744299608597,9.1095,109.78,109.68,103.993]
[1744299609010,51.89204287,109.76,109.71,51.89204287]
[1744299609207,51.89204287,109.76,109.68,103.993]
[1744299609393,9.1095,109.78,109.66,24.65004886]
[1744299609394,51.89204287,109.73,109.69,9.1166]
[1744299609710,51.89204287,109.75,109.69,9.1166]
[1744299609887,51.89204287,109.72,109.69,9.1166]
[1744299610206,51.89204287,109.75,109.69,9.1166]
[1744299610406,31.8819,109.78,109.71,51.89204287]
[1744299610883,51.89204287,109.76,109.69,31.9081]
[1744299611089,9.1091,109.78,109.69,31.9081]
[1744299611285,51.89204287,109.75,109.67,22.7949]
[1744299611592,51.89204287,109.73,109.69,51.89204287]
[1744299611904,51.89204287,109.75,109.67,9.118]
[1744299612212,51.89204287,109.75,109.66,6.0004]
[1744299612213,51.89204287,109.68,109.66,6.0004]
[1744299612516,51.89204287,109.67,109.61,15.6677]
[1744299612690,51.89204287,109.63,109.61,0.03]
[1744299613004,51.89204287,109.65,109.61,0.03]
[1744299613506,51.89204287,109.62,109.61,0.03]
[1744299613686,9.1207,109.64,109.61,0.03]
[1744299613881,51.89204287,109.62,109.61,0.03]
[1744299614089,9.1207,109.64,109.61,0.03]
[1744299614822,103.78408574,109.62,109.6,0.03]
[1744299615031,122.71805774,109.61,109.6,0.03]
[1744299615310,9.1247,109.6,109.52,9.1307]
[1744299615485,51.89204287,109.58,109.52,9.1307]
[1744299615681,51.89204287,109.6,109.52,9.1307]
[1744299615887,0.5,109.58,109.44,22.8417]
[1744299616117,18.933972,109.59,109.44,9.1374]
[1744299616293,19.433972,109.59,109.44,9.1374]
[1744299616496,18.64964886,109.58,109.44,9.1374]
[1744299616693,0.28432314,109.59,109.45,51.89204287]
[1744299616926,18.64964886,109.59,109.47,26.0]
[1744299617127,18.64964886,109.61,109.47,26.0]
[1744299617418,51.89204287,109.6,109.51,51.89204287]
[1744299617581,18.933972,109.61,109.49,9.1332]
[1744299618010,0.28432314,109.6,109.49,9.1332]
[1744299618220,51.89204287,109.6,109.49,9.1332]
[1744299618422,18.64964886,109.59,109.49,9.1332]
[1744299618583,51.89204287,109.55,109.49,9.1332]
[1744299618783,51.89204287,109.52,109.44,394.14]
[1744299618989,26.0,109.54,109.47,0.03]
[1744299619284,26.0,109.58,109.49,9.1332]
[1744299619489,44.64964886,109.57,109.49,9.1332]
[1744299619707,26.0,109.57,109.48,9.1339]
[1744299620090,51.89204287,109.54,109.48,9.1339]
[1744299620291,51.89204287,109.55,109.48,9.1339]
[1744299620499,26.0,109.57,109.48,9.1339]
[1744299620806,10.80529953,109.65,109.52,32.75832314]
[1744299621007,52.39204287,109.65,109.52,6.474]
[1744299621209,18.64964886,109.64,109.55,51.89204287]
[1744299621506,51.89204287,109.65,109.57,9.1259]
[1744299621712,6.3381,109.68,109.57,9.1259]
[1744299622097,51.89204287,109.6,109.57,9.1259]
[1744299622289,0.28432314,109.63,109.54,9.1288]
[1744299622806,18.64964886,109.64,109.54,9.1288]
[1744299622982,18.64964886,109.69,109.6,51.89204287]
[1744299623184,0.063,109.71,109.6,51.89204287]
[1744299623384,0.063,109.71,109.61,31.9313]
[1744299623588,51.89204287,109.67,109.61,38.4697]
[1744299623784,0.063,109.71,109.62,0.28432314]
[1744299624002,0.063,109.71,109.65,51.89204287]
[1744299624311,0.063,109.71,109.7,51.89204287]
[1744299624699,0.063,109.71,109.7,103.78408574]
[1744299624894,0.063,109.71,109.7,104.06840888]
[1744299625213,0.063,109.71,109.7,51.89204287]
[1744299625517,0.063,109.71,109.68,9.1174]
[1744299626023,0.063,109.71,109.7,103.78408574]
[1744299626318,51.89204287,109.77,109.7,103.78408574]
[1744299626522,51.89204287,109.76,109.68,31.9109]
[1744299626814,0.063,109.79,109.75,51.89204287]
[1744299627133,0.063,109.79,109.76,51.89204287]
[1744299627921,0.063,109.79,109.72,9.1141]
[1744299628115,0.063,109.79,109.76,51.89204287]
[1744299628319,0.063,109.79,109.78,51.89204287]
[1744299628522,0.063,109.83,109.78,103.78408574]
[1744299628696,0.063,109.83,109.82,51.89204287]
[1744299629490,0.063,109.86,109.83,31.8673]
[1744299629708,0.063,109.86,109.85,103.78408574]
[1744299629913,0.063,109.9,109.89,51.89204287]
[1744299630094,0.063,109.9,109.85,51.89204287]
[1744299630291,0.063,109.9,109.89,51.89204287]
[1744299630596,0.063,109.92,109.89,103.78408574]
[1744299630794,0.063,109.92,109.91,51.89204287]
[1744299630994,0.063,110.0,109.95,51.89204287]
[1744299631305,0.063,110.0,109.93,26.0]
[1744299631487,0.063,110.0,109.99,51.89204287]
[1744299631907,0.063,110.0,109.99,103.78408574]
[1744299632309,23.47507826,110.01,109.99,51.89204287]
[1744299632506,167.26908637,110.07,110.0,51.89204287]
[1744299632703,51.89204287,110.02,109.96,6.4613]
[1744299633018,167.26908637,110.07,110.0,51.89204287]
[1744299633201,167.26908637,110.07,110.03,51.89204287]
[1744299633404,51.89204287,110.06,110.01,51.89204287]
[1744299633604,167.26908637,110.07,110.0,9.0906]
[1744299633799,51.89204287,110.05,110.0,9.0906]
[1744299634002,51.89204287,110.06,110.04,220.42187739]
[1744299634207,17.80024886,110.09,110.04,220.42187739]
[1744299634408,26.0,110.06,110.04,220.42187739]
[1744299634704,77.89204287,110.06,110.04,220.42187739]
[1744299635014,77.89204287,110.06,110.05,18.36848977]
[1744299635201,77.95504287,110.1,110.05,18.36848977]
[1744299635393,0.063,110.1,110.05,18.36848977]
[1744299635598,51.89204287,110.08,110.05,18.36848977]
[1744299635800,26.063,110.1,110.06,18.36848977]
[1744299636099,51.95504287,110.1,110.06,18.36848977]
[1744299636293,7.77211687,110.1,110.06,18.36848977]
[1744299636499,51.89204287,110.07,110.06,18.36848977]
[1744299636799,51.89204287,110.07,110.04,202.05338762]
[1744299637007,51.89204287,110.05,110.04,202.05338762]
[1744299637204,103.78408574,110.05,110.04,177.56206791]
[1744299637407,26.0,110.07,110.04,177.56206791]
[1744299637594,0.063,110.13,110.04,177.56206791]
[1744299637813,51.89204287,110.15,110.05,0.5]
[1744299638013,312.38,110.19,110.06,0.5]
[1744299638324,51.89204287,110.15,110.11,54.85672298]
[1744299638619,103.78408574,110.12,110.11,54.85672298]
[1744299638804,103.92624731,110.12,110.11,54.85672298]
[1744299639113,70.56994991,110.12,110.11,54.85672298]
[1744299639317,51.89204287,110.15,110.11,72.94679432]
[1744299639516,51.89204287,110.2,110.13,0.5]
[1744299639821,51.89204287,110.25,110.14,0.5]
[1744299640118,51.89204287,110.18,110.14,52.39204287]
[1744299640310,321.2697,110.26,110.15,0.5]
[1744299640502,51.89204287,110.2,110.15,0.5]
[1744299640702,51.89204287,110.2,110.13,0.5]
[1744299640703,51.89204287,110.16,110.13,0.5]
[1744299641022,51.89204287,110.18,110.16,0.5]
[1744299641417,51.89204287,110.17,110.15,0.5]
[1744299641613,51.89204287,110.16,110.14,0.5]
[1744299641813,26.0,110.12,110.11,54.85672298]
[1744299642024,122.71805774,110.12,110.11,54.85672298]
[1744299642318,122.71805774,110.12,110.11,5.07152298]
[1744299642319,122.4337346,110.12,110.11,5.07152298]
[1744299642635,51.89204287,110.15,110.09,0.5]
[1744299643003,26.0,110.16,110.09,52.39204287]
[1744299643333,18.64964886,110.19,110.1,0.5]
[1744299643514,51.89204287,110.13,110.09,0.5]
[1744299643711,51.89204287,110.15,110.09,0.5]
[1744299644111,51.89204287,110.11,110.08,0.5]
[1744299644303,51.89204287,110.15,110.09,0.5]
[1744299644508,51.89204287,110.15,110.11,0.5]
[1744299644833,51.89204287,110.15,110.08,0.5]
[1744299645038,51.95504287,110.2,110.12,0.5]
[1744299645332,61.02944287,110.2,110.12,0.5]
[1744299645519,51.89204287,110.14,110.12,0.5]
[1744299645706,51.89204287,110.13,110.09,9.5833]
[1744299645904,51.89204287,110.12,110.11,0.5]
[1744299646103,18.933972,110.19,110.11,0.5]
[1744299646421,51.89204287,110.13,110.11,0.5]
[1744299647119,51.89204287,110.14,110.11,0.5]
[1744299647717,51.95504287,110.2,110.12,0.5]
[1744299647905,61.02954287,110.2,110.12,0.5]
[1744299648103,18.64964886,110.19,110.1,0.5]
[1744299648307,51.89204287,110.11,110.05,0.5]
[1744299648542,51.89204287,110.06,110.04,135.20225842]
[1744299648829,51.89204287,110.1,110.05,46.3893702]
[1744299649003,51.89204287,110.06,110.04,134.70225842]
[1744299649200,51.89204287,110.05,110.04,134.70225842]
[1744299649425,51.89204287,110.1,110.04,134.70225842]
[1744299649627,51.89204287,110.05,110.04,134.70225842]
[1744299650031,103.78408574,110.05,110.04,134.70225842]
[1744299650518,51.89204287,110.05,110.04,134.70225842]
[1744299650833,18.933972,110.12,110.04,134.70225842]
[1744299651121,51.89204287,110.07,110.04,134.70225842]
[1744299651336,51.89204287,110.06,110.04,134.70225842]
[1744299651503,51.89204287,110.05,110.04,134.70225842]
[1744299651899,9.0801,110.13,110.04,143.78985842]
[1744299652102,320.9396,110.14,110.05,0.5]
[1744299652340,320.9396,110.14,110.06,0.5]
[1744299652637,51.89204287,110.1,110.05,0.5]
[1744299652822,320.9396,110.14,110.06,0.5]
[1744299653018,51.89204287,110.12,110.08,0.5]
[1744299653326,51.89204287,110.11,110.06,52.39204287]
[1744299653531,51.89204287,110.1,110.06,52.39204287]
[1744299653728,60.97084287,110.15,110.07,0.5]
[1744299653923,51.89204287,110.15,110.08,52.39204287]
[1744299654110,51.89204287,110.15,110.07,0.5]
[1744299654111,51.89204287,110.1,110.07,0.5]
[1744299654310,51.89204287,110.15,110.07,0.5]
[1744299654731,51.89204287,110.11,110.07,0.5]
[1744299655138,51.89204287,110.15,110.08,51.89204287]
[1744299655139,51.89204287,110.13,110.08,51.89204287]
[1744299655338,51.89204287,110.13,110.07,0.5]
[1744299655339,51.89204287,110.13,110.09,52.39204287]
[1744299655829,27.72564886,110.18,110.09,9.5828]
[1744299656033,51.89204287,110.13,110.09,61.47484287]
[1744299656227,27.78804886,110.19,110.11,0.5]
[1744299656426,51.89204287,110.15,110.11,0.5]
[1744299656632,51.89204287,110.14,110.11,0.5]
[1744299656828,51.89204287,110.13,110.11,0.5]
[1744299657137,51.89204287,110.12,110.08,9.5841]
[1744299657436,51.89204287,110.15,110.08,0.5]
[1744299657611,51.89204287,110.09,110.07,9.5847]
[1744299657816,51.89204287,110.11,110.07,9.5847]
[1744299658037,0.28432314,110.16,110.06,1.5018]
[1744299658212,51.89204287,110.07,110.04,73.47395914]
[1744299658417,103.78408574,110.05,110.04,73.47395914]
[1744299658613,18.933972,110.09,110.04,73.47395914]
[1744299658614,18.933972,110.12,110.04,73.47395914]
[1744299658815,18.933972,110.09,110.04,73.47395914]
[1744299659022,51.89204287,110.1,110.04,73.47395914]
[1744299659214,51.89204287,110.06,110.04,73.47395914]
[1744299659416,51.89204287,110.07,110.04,73.47395914]
[1744299659726,51.89204287,110.06,110.04,73.47395914]
[1744299659934,60.97474287,110.1,110.04,73.47395914]
[1744299660131,51.89204287,110.05,110.04,73.47395914]
[1744299660329,9.0827,110.1,110.04,73.47395914]
[1744299660643,51.89204287,110.08,110.05,0.5]
[1744299660820,51.89204287,110.1,110.07,0.5]
[1744299661018,51.89204287,110.08,110.04,73.47395914]
[1744299661315,83.66714287,110.15,110.05,0.5]
[1744299661516,9.0773,110.17,110.09,0.5]
[1744299661715,0.063,110.19,110.09,9.5827]
[1744299661937,9.1382,110.19,110.11,0.5]
[1744299662116,51.89204287,110.15,110.1,0.5]
[1744299662313,9.1382,110.19,110.09,9.5827]
[1744299662531,51.89204287,110.12,110.09,0.5]
[1744299662721,18.64964886,110.18,110.09,0.5]
[1744299662939,51.89204287,110.13,110.09,0.5]
[1744299663133,51.89204287,110.13,110.1,0.5]
[1744299663328,9.1382,110.19,110.11,0.5]
[1744299663525,9.1382,110.19,110.13,52.39204287]
[1744299663526,0.063,110.19,110.13,52.39204287]
[1744299663742,51.89204287,110.15,110.12,9.5809]
[1744299664040,0.063,110.19,110.12,0.5]
[1744299664220,51.89204287,110.16,110.12,0.5]
[1744299664419,51.89204287,110.13,110.1,2.1348]
[1744299664620,103.78408574,110.11,110.07,0.5]
[1744299664840,51.89204287,110.15,110.07,0.5]
[1744299665022,51.89204287,110.15,110.08,0.5]
[1744299665222,0.063,110.19,110.11,52.39204287]
[1744299665443,0.063,110.19,110.14,0.5]
[1744299665647,0.063,110.19,110.14,52.39204287]
[1744299665848,51.89204287,110.17,110.13,9.5801]
[1744299666023,0.063,110.19,110.14,0.5]
[1744299666223,0.063,110.19,110.15,0.5]
[1744299666421,0.063,110.19,110.15,52.39204287]
[1744299666626,0.063,110.19,110.15,51.89204287]
[1744299666839,51.95504287,110.19,110.15,0.5]
[1744299667054,0.063,110.19,110.14,0.5]
[1744299667344,0.063,110.19,110.14,52.39204287]
[1744299667536,51.95504287,110.19,110.15,0.5]
[1744299667727,51.95504287,110.19,110.14,52.39204287]
[1744299667927,51.89204287,110.18,110.14,61.47094287]
[1744299668124,0.063,110.19,110.15,52.39204287]
[1744299668351,0.063,110.19,110.18,51.89204287]
[1744299668555,0.063,110.19,110.17,0.5]
[1744299668844,0.063,110.19,110.14,52.39204287]
[1744299669028,0.063,110.19,110.14,0.5]
[1744299669347,51.89204287,110.15,110.1,1.5079]
[1744299669555,51.89204287,110.15,110.1,2.0079]
[1744299669731,51.89204287,110.15,110.11,0.5]
[1744299669921,51.89204287,110.15,110.1,1.5079]
[1744299670223,9.1385,110.19,110.12,0.5]
[1744299670427,9.1385,110.19,110.11,51.89204287]
[1744299670428,0.063,110.19,110.15,0.5]
[1744299670724,0.063,110.19,110.17,51.89204287]
[1744299670925,0.063,110.19,110.17,52.39204287]
[1744299671235,0.063,110.19,110.18,52.39204287]
[1744299671735,0.063,110.25,110.23,0.5]
[1744299671937,51.89204287,110.24,110.21,0.5]
[1744299672136,0.063,110.25,110.21,0.5]
[1744299672337,0.063,110.25,110.24,0.5]
[1744299672731,0.063,110.25,110.23,0.5]
[1744299672927,0.063,110.27,110.26,0.5]
[1744299673263,0.063,110.27,110.26,52.39204287]
[1744299673756,0.063,110.3,110.29,0.5]
[1744299674053,0.063,110.39,110.29,82.05261487]
[1744299674222,0.063,110.39,110.31,71.04169173]
[1744299674427,0.063,110.39,110.31,71.32601487]
[1744299674651,0.063,110.39,110.31,52.39204287]
[1744299674832,0.063,110.39,110.31,0.5]
[1744299675035,51.89204287,110.34,110.29,11.2266]
[1744299675254,51.89204287,110.35,110.3,0.5]
[1744299675424,51.89204287,110.35,110.29,10.7264]
[1744299675425,51.89204287,110.35,110.29,1.6596]
[1744299675752,103.78408574,110.3,110.24,0.5]
[1744299675932,51.89204287,110.27,110.23,7.633]
[1744299676127,51.89204287,110.3,110.22,0.5]
[1744299676128,51.89204287,110.24,110.22,0.5]
[1744299676328,51.89204287,110.25,110.22,0.5]
[1744299676529,18.933972,110.29,110.21,49.29050123]
[1744299676751,18.933972,110.29,110.22,0.5]
[1744299677056,18.933972,110.29,110.21,48.79050123]
[1744299677057,51.89204287,110.35,110.25,52.39204287]
[1744299677227,9.0628,110.35,110.27,0.5]
[1744299677425,51.89204287,110.35,110.31,51.89204287]
[1744299677662,0.063,110.39,110.31,52.39204287]
[1744299677962,51.95504287,110.32,110.29,0.5]
[1744299678245,0.063,110.32,110.3,0.5]
[1744299678451,0.063,110.32,110.29,0.5]
[1744299678452,51.95504287,110.32,110.29,0.5]
[1744299678750,51.89204287,110.31,110.29,0.5]
[1744299678946,51.89204287,110.3,110.27,2.0009]
[1744299679131,0.063,110.32,110.27,0.5]
[1744299679447,51.89204287,110.3,110.27,0.5]
[1744299679631,51.89204287,110.3,110.24,0.5]
[1744299679632,51.89204287,110.28,110.24,0.5]
[1744299679838,51.89204287,110.27,110.24,0.5]
[1744299680150,51.89204287,110.25,110.22,11.1267]
[1744299680326,51.89204287,110.3,110.24,0.5]
[1744299680530,51.89204287,110.3,110.22,0.5]
[1744299680944,18.79181043,110.31,110.24,0.5]
[1744299681248,9.26996157,110.32,110.25,0.5]
[1744299681439,9.26996157,110.32,110.18,52.0042]
[1744299681440,103.78408574,110.26,110.19,0.5]
[1744299681631,51.89204287,110.21,110.2,0.5]
[1744299681831,51.89204287,110.22,110.2,0.5]
[1744299682035,51.89204287,110.24,110.21,0.5]
[1744299682244,9.067,110.29,110.21,0.5]
[1744299682434,9.067,110.29,110.21,52.39204287]
[1744299682637,51.89204287,110.26,110.23,0.5]
[1744299682856,60.95854287,110.3,110.23,0.5]
[1744299683050,0.14216157,110.29,110.22,0.5]
[1744299683227,51.89204287,110.23,110.2,0.5]
[1744299683557,51.89204287,110.25,110.19,0.5]
[1744299683928,103.78408574,110.2,110.17,0.5]
[1744299684132,51.89204287,110.25,110.19,0.5]
[1744299684448,9.35292314,110.27,110.17,60.96884287]
[1744299684449,51.89204287,110.23,110.2,0.5]
[1744299684652,51.89204287,110.25,110.21,0.5]
[1744299684835,28.001672,110.29,110.21,0.5]
[1744299685034,9.0677,110.29,110.21,0.5]
[1744299685229,363.27204287,110.3,110.23,52.39204287]
[1744299685435,363.27204287,110.3,110.23,0.5]
[1744299685655,51.89204287,110.27,110.23,0.5]
[1744299685830,51.89204287,110.26,110.22,0.5]
[1744299686038,51.89204287,110.26,110.23,0.5]
[1744299686357,51.89204287,110.25,110.23,0.5]
[1744299686665,372.33834287,110.3,110.23,9.5718]
[1744299686949,27.77744886,110.32,110.25,0.5]
[1744299687155,51.89204287,110.28,110.25,0.5]
[1744299688053,9.1278,110.32,110.25,61.46154287]
[1744299688054,0.063,110.32,110.25,61.46154287]
[1744299688263,0.063,110.32,110.27,51.89204287]
[1744299688557,0.063,110.32,110.3,51.89204287]
[1744299688735,0.063,110.32,110.31,0.5]
[1744299688932,51.95504287,110.32,110.25,1.5037]
[1744299689132,51.89204287,110.26,110.21,9.5732]
[1744299689454,51.89204287,110.3,110.22,0.5]
[1744299689655,18.996972,110.32,110.22,0.5]
[1744299689958,0.063,110.32,110.31,0.5]
[1744299690132,0.063,110.32,110.31,9.0653]
[1744299690327,0.063,110.32,110.29,0.5]
[1744299690547,51.89204287,110.31,110.27,6.6028]
[1744299690740,0.063,110.32,110.27,6.6028]
[1744299691029,0.063,110.32,110.3,0.5]
[1744299691233,0.063,110.32,110.3,52.39204287]
[1744299691729,0.063,110.32,110.31,0.5]
[1744299691941,0.063,110.32,110.31,52.39204287]
[1744299692135,51.89204287,110.32,110.3,0.5]
[1744299692345,51.89204287,110.35,110.28,0.5]
[1744299692537,51.89204287,110.29,110.27,6.6028]
[1744299692736,51.89204287,110.35,110.27,6.6028]
[1744299692944,51.89204287,110.31,110.28,0.5]
[1744299693144,51.89204287,110.3,110.27,6.6028]
[1744299693344,18.933972,110.34,110.25,0.5]
[1744299693550,51.89204287,110.28,110.25,0.5]
[1744299693739,18.79181043,110.34,110.26,0.5]
[1744299693947,311.423,110.37,110.29,0.5]
[1744299694148,9.0612,110.36,110.29,9.5669]
[1744299694348,51.89204287,110.32,110.29,0.5]
[1744299694554,51.89204287,110.31,110.28,0.5]
[1744299694739,51.89204287,110.35,110.29,0.5]
[1744299694944,51.89204287,110.31,110.29,0.5]
[1744299695142,51.89204287,110.35,110.28,9.5677]
[1744299695342,51.89204287,110.32,110.3,0.5]
[1744299695542,320.4837,110.37,110.3,0.5]
[1744299695745,51.89204287,110.33,110.3,0.5]
[1744299695949,51.89204287,110.35,110.3,0.5]
[1744299695950,51.89204287,110.32,110.3,0.5]
[1744299696138,320.4837,110.37,110.3,9.0661]
[1744299696343,51.89204287,110.33,110.3,9.5661]
[1744299696551,0.063,110.37,110.32,0.5]
[1744299696836,51.89204287,110.36,110.33,0.5]
[1744299697062,51.89204287,110.36,110.32,0.5]
[1744299697361,51.89204287,110.36,110.33,0.5]
[1744299697543,0.063,110.37,110.34,0.5]
[1744299697746,0.063,110.37,110.36,52.39204287]
[1744299698153,0.063,110.37,110.36,61.45324287]
[1744299698545,0.063,110.38,110.37,52.39204287]
[1744299699067,51.95504287,110.38,110.31,0.5]
[1744299699240,51.89204287,110.37,110.33,0.5]
[1744299699436,51.89204287,110.35,110.33,0.5]
[1744299699636,0.063,110.38,110.33,0.5]
[1744299699952,0.063,110.38,110.34,0.5]
[1744299700158,51.89204287,110.37,110.34,0.5]
[1744299700359,51.89204287,110.37,110.35,0.5]
[1744299700668,51.89204287,110.36,110.33,0.5]
[1744299700852,51.89204287,110.35,110.34,0.5]
[1744299701055,51.89204287,110.36,110.34,0.5]
[1744299701267,0.063,110.38,110.36,0.5]
[1744299701457,0.063,110.38,110.37,0.5]
[1744299702344,0.063,110.38,110.37,61.45244287]
[1744299702960,0.063,110.38,110.37,0.5]
[1744299703168,51.95504287,110.38,110.35,0.5]
[1744299703342,51.89204287,110.36,110.35,0.5]